bitfinex/quotes_ETHUSD_20251107
["timestamp","ask_amount","ask_price","bid_price","bid_amount"]
[1762523759211,5.86704175,3247.2,3247.1,0.001]
[1762523759416,2.2413655,3247.2,3247.1,0.001]
[1762523759568,1.743043,3247.2,3247.1,0.001]
[1762523761109,2.22633068,3247.2,3247.1,0.001]
[1762523761312,5.85200693,3247.2,3247.1,0.001]
[1762523763364,2.77243068,3247.2,3247.1,0.001]
[1762523763569,2.22633068,3247.2,3247.1,0.001]
[1762523764178,0.96661868,3247.2,3247.1,0.001]
[1762523764392,1.12731868,3247.2,3247.1,0.001]
[1762523764596,1.51271868,3247.2,3247.1,0.001]
[1762523765098,1.51191868,3247.2,3247.1,0.001]
[1762523765406,0.96581868,3247.2,3247.1,0.001]
[1762523766607,0.48321331,3247.8,3247.1,1.1544]
[1762523767131,3.07822288,3248.7,3247.1,1.1544]
[1762523767132,0.4832051,3247.7,3247.1,0.001]
[1762523767308,0.8708051,3247.7,3247.1,0.001]
[1762523767504,0.002,3247.2,3247.1,0.001]
[1762523768028,0.002,3247.2,3247.1,1.1544]
[1762523768608,0.002,3247.2,3247.1,0.6839]
[1762523769000,0.002,3247.2,3247.1,1.1544]
[1762523769203,0.002,3247.2,3247.1,0.6839]
[1762523769722,0.002,3247.2,3247.1,1.1544]
[1762523769919,0.002,3247.2,3247.1,0.1993]
[1762523770119,0.002,3247.2,3247.1,0.001]
[1762523770995,0.1627,3247.2,3247.1,0.001]
[1762523771432,0.002,3247.2,3247.1,0.001]
[1762523772097,0.1627,3247.2,3247.1,0.001]
[1762523772511,0.002,3247.2,3247.1,0.001]
[1762523773491,0.1627,3247.2,3247.1,0.001]
[1762523773899,0.002,3247.2,3247.1,0.001]
[1762523774498,0.1627,3247.2,3247.1,0.001]
[1762523775498,0.002,3247.2,3247.1,0.001]
[1762523775693,0.1627,3247.2,3247.1,0.001]
[1762523775918,1.807812,3247.2,3247.1,0.001]
[1762523776130,1.9885932,3247.2,3247.1,0.001]
[1762523776329,5.06816945,3247.2,3247.1,0.001]
[1762523777229,0.7288812,3247.2,3247.1,0.001]
[1762523777429,1.21218111,3247.2,3247.1,0.001]
[1762523777932,2.47189311,3247.2,3247.1,0.001]
[1762523778127,1.21218111,3247.2,3247.1,0.001]
[1762523778731,0.48529991,3247.2,3247.1,0.001]
[1762523779333,0.64599991,3247.2,3247.1,0.001]
[1762523779525,1.03139991,3247.2,3247.1,0.001]
[1762523779715,5.37068816,3247.2,3247.1,0.001]
[1762523780296,5.85402608,3247.2,3247.1,0.001]
[1762523780501,6.74737681,3247.2,3247.1,0.001]
[1762523780806,6.26403889,3247.2,3247.1,0.001]
[1762523781007,3.18446264,3247.2,3247.1,0.001]
[1762523781197,6.26403889,3247.2,3247.1,0.001]
[1762523782937,3.18446264,3247.2,3247.1,0.001]
[1762523783306,2.79906264,3247.2,3247.1,0.001]
[1762523783508,1.90571191,3247.2,3247.1,0.001]
[1762523783706,2.38903261,3247.2,3247.1,0.001]
[1762523783942,5.85400886,3247.2,3247.1,0.001]
[1762523784446,5.89250356,3247.2,3247.1,0.001]
[1762523784652,5.85400886,3247.2,3247.1,0.001]
[1762523784822,7.37668546,3247.2,3247.1,0.001]
[1762523786308,6.99128546,3247.2,3247.1,0.001]
[1762523786540,7.37668546,3247.2,3247.1,0.001]
[1762523787149,0.3038,3246.5,3245.1,0.6625]
[1762523787311,0.793104,3247.1,3245.2,0.00955843]
[1762523787508,0.66770805,3247.0,3245.9,0.4705]
[1762523787708,1.259712,3246.4,3245.1,0.192]
[1762523787947,0.4833855,3246.8,3245.5,0.4705]
[1762523788150,0.3876,3246.7,3245.5,0.4705]
[1762523788354,1.259712,3246.6,3245.5,0.4705]
[1762523788531,4.81272933,3246.5,3245.5,0.4705]
[1762523788730,1.73244993,3246.5,3245.5,0.4705]
[1762523789165,0.47273793,3246.5,3245.8,0.4715]
[1762523789320,0.4833855,3246.8,3245.8,0.001]
[1762523789321,0.3876,3246.7,3245.8,0.001]
[1762523789521,3.08049821,3246.3,3245.8,0.001]
[1762523789719,4.34027344,3246.2,3245.8,0.001]
[1762523789919,0.1607,3245.9,3245.8,0.001]
[1762523790546,1.420412,3245.9,3245.8,0.001]
[1762523790742,1.6884244,3245.9,3245.8,0.001]
[1762523791164,1.5277244,3245.9,3245.8,0.001]
[1762523791467,1.259712,3245.9,3245.8,0.001]
[1762523792252,1.422712,3245.9,3245.8,0.001]
[1762523793165,1.9061741,3245.9,3245.8,0.001]
[1762523794240,1.7431741,3245.9,3245.8,0.001]
[1762523794556,1.7431741,3245.9,3245.3,0.45438]
[1762523794734,1.91749151,3245.9,3245.1,0.192]
[1762523794933,1.259712,3245.8,3245.1,0.192]
[1762523795561,0.4834621,3245.9,3245.7,0.4613]
[1762523796364,0.4834621,3245.9,3245.8,0.4613]
[1762523796833,0.4834621,3245.9,3245.8,0.9393]
[1762523797866,0.27930805,3247.0,3245.8,0.9393]
[1762523798088,1.259712,3246.8,3245.9,0.478]
[1762523798290,0.44827064,3246.7,3245.9,0.478]
[1762523798474,4.01170094,3246.7,3245.2,0.405504]
[1762523798788,1.259712,3246.4,3245.1,0.192]
[1762523798992,3.08033636,3246.4,3245.2,0.478]
[1762523799191,0.03850537,3246.3,3245.2,0.478]
[1762523799987,0.4038,3246.2,3245.2,0.478]
[1762523800190,1.259712,3246.3,3245.2,0.478]
[1762523800392,0.55998056,3246.2,3245.2,0.478]
[1762523800568,4.34005686,3246.4,3245.2,0.478]
[1762523801088,0.48341921,3246.2,3245.2,0.478]
[1762523801587,1.259712,3246.0,3245.1,0.192]
[1762523801761,3.08095559,3245.8,3245.1,0.192]
[1762523801963,1.259712,3245.9,3245.1,0.192]
[1762523801964,3.08085487,3245.9,3245.1,0.192]
[1762523802153,2.51692369,3245.8,3245.1,0.192]
[1762523802358,2.51692369,3245.8,3245.5,0.001]
[1762523802756,0.1607,3245.6,3245.5,0.001]
[1762523802951,1.25721169,3245.8,3245.5,0.001]
[1762523803153,1.259712,3246.4,3245.7,0.4602]
[1762523803358,1.74313121,3246.2,3245.5,0.4848]
[1762523803558,0.48341921,3246.2,3245.5,0.4848]
[1762523804060,0.48341921,3246.2,3246.1,0.4602]
[1762523804284,0.48341921,3246.2,3246.1,0.6471]
[1762523804484,0.48341921,3246.2,3246.1,1.1309]
[1762523804792,0.48341921,3246.2,3245.7,0.4838]
[1762523804999,0.48341921,3246.2,3246.1,0.6471]
[1762523805495,0.48341921,3246.2,3246.1,1.1309]
[1762523806567,0.48341921,3246.2,3245.7,0.4838]
[1762523808338,0.03850774,3246.1,3245.7,0.4838]
[1762523808535,0.03850774,3246.1,3245.5,0.001]
[1762523808693,0.48341113,3246.1,3245.6,0.4838]
[1762523809387,0.52191887,3246.1,3245.6,0.4838]
[1762523809728,0.48341113,3246.1,3245.6,0.4838]
[1762523810597,0.03770893,3246.0,3245.6,0.4838]
[1762523810798,0.48341113,3246.1,3245.6,0.4838]
[1762523811931,0.48341113,3246.1,3245.5,0.001]
[1762523812135,0.03850893,3246.0,3245.5,0.001]
[1762523812299,0.17816321,3245.9,3245.5,0.001]
[1762523813504,0.1607,3245.6,3245.5,0.001]
[1762523813745,1.259712,3245.7,3245.5,0.001]
[1762523814043,0.17816321,3245.9,3245.5,0.001]
[1762523814044,1.43787521,3245.9,3245.5,0.001]
[1762523814215,0.1631,3245.6,3245.5,0.001]
[1762523814419,0.48347184,3245.7,3245.5,0.001]
[1762523815340,0.1607,3245.6,3245.5,0.001]
[1762523815715,0.48347184,3245.7,3245.5,0.001]
[1762523816765,0.1607,3245.6,3245.5,0.001]
[1762523816941,0.65918092,3245.6,3245.5,0.001]
[1762523817245,0.48347184,3245.7,3245.5,0.001]
[1762523817428,0.1607,3245.6,3245.5,0.001]
[1762523817832,0.48348045,3245.8,3245.5,0.001]
[1762523818043,1.43787521,3245.9,3245.5,0.001]
[1762523818749,0.17816321,3245.9,3245.5,0.4848]
[1762523818910,0.48341113,3246.1,3245.8,0.4602]
[1762523819106,0.48341113,3246.1,3245.5,0.001]
[1762523819309,0.4038,3245.6,3245.5,0.001]
[1762523819510,1.259712,3245.9,3245.5,0.001]
[1762523819742,0.002,3246.1,3245.5,0.945]
[1762523819922,0.002,3246.1,3245.9,0.4602]
[1762523820120,0.002,3246.1,3245.5,0.4848]
[1762523820345,0.1607,3245.6,3245.5,0.001]
[1762523820562,0.88474716,3246.0,3245.5,0.001]
[1762523821132,0.48344716,3246.0,3245.5,0.001]
[1762523821561,0.48344716,3246.0,3245.6,0.4838]
[1762523823163,0.48344716,3246.0,3245.5,0.001]
[1762523823366,0.1607,3245.6,3245.5,0.001]
[1762523824069,0.1631,3245.6,3245.5,0.001]
[1762523824576,0.562,3245.6,3245.5,0.001]
[1762523824782,5.0849776,3245.6,3245.5,0.001]
[1762523824929,5.12349128,3245.6,3245.5,0.001]
[1762523826482,5.0849776,3245.6,3245.5,0.001]
[1762523826813,2.0038832,3245.6,3245.5,0.001]
[1762523827150,5.0849776,3245.6,3245.5,0.001]
[1762523830693,5.56849281,3245.6,3245.5,0.001]
[1762523833364,5.56769281,3245.6,3245.5,0.001]
[1762523833560,5.56769281,3245.6,3245.2,0.001]
[1762523833561,3.08137922,3245.3,3245.2,0.001]
[1762523833893,4.74678513,3245.1,3245.0,0.001]
[1762523834098,4.75228513,3245.1,3245.0,0.001]
[1762523834283,5.15528513,3245.1,3245.0,0.001]
[1762523834453,5.63889219,3245.1,3245.0,0.001]
[1762523834650,7.47246641,3245.1,3245.0,0.001]
[1762523834873,4.39089728,3245.1,3245.0,0.001]
[1762523835069,1.42114772,3245.1,3245.0,0.001]
[1762523835574,5.76242885,3245.1,3245.0,0.001]
[1762523836267,3.48726306,3244.9,3244.8,0.001]
[1762523836478,5.02587506,3244.9,3244.8,0.001]
[1762523836787,1.259712,3244.4,3243.6,0.1959]
[1762523836951,1.259712,3244.7,3243.7,0.4855]
[1762523837151,0.405504,3244.5,3243.6,0.1959]
[1762523837387,0.403,3243.7,3243.0,0.6724]
[1762523837588,0.403,3243.7,3243.1,0.4855]
[1762523838298,0.403,3243.7,3242.7,0.6814]
[1762523838299,1.259712,3243.4,3242.7,0.6814]
[1762523838463,0.7670172,3243.3,3242.7,0.6814]
[1762523839589,0.7670172,3243.3,3242.6,0.001]
[1762523839805,1.259712,3243.1,3242.6,0.001]
[1762523840005,1.259712,3243.2,3242.6,0.4865]
[1762523840329,4.34319016,3243.1,3242.6,0.001]
[1762523840532,0.43431902,3243.0,3242.6,0.001]
[1762523840690,1.259712,3242.9,3242.6,0.001]
[1762523841928,0.1447,3242.7,3242.6,0.001]
[1762523844506,1.259712,3242.9,3242.6,0.4756]
[1762523844706,1.259712,3242.9,3242.8,0.4746]
[1762523844707,0.48387264,3242.9,3242.8,0.4746]
[1762523844924,0.48383875,3243.0,3242.8,0.4746]
[1762523845125,0.48383875,3243.0,3242.6,0.4865]
[1762523845126,0.48383875,3243.0,3242.9,0.9601]
[1762523845328,0.4855,3243.8,3242.9,0.9601]
[1762523845496,0.4855,3243.8,3243.7,0.6705]
[1762523845838,0.483748,3244.0,3243.7,0.6705]
[1762523846304,0.483748,3244.0,3243.9,0.4746]
[1762523846700,0.483748,3244.0,3243.7,0.1959]
[1762523846912,0.483748,3244.0,3243.9,0.4746]
[1762523847327,0.483748,3244.0,3243.2,0.4855]
[1762523847652,0.96747621,3244.0,3243.5,0.1959]
[1762523848062,0.96747621,3244.0,3243.5,0.6814]
[1762523848566,0.96747621,3244.0,3243.5,0.1959]
[1762523848770,0.96747621,3244.0,3243.6,0.4855]
[1762523849123,0.96747621,3244.0,3243.5,0.1959]
[1762523849346,0.96747621,3244.0,3243.0,0.4855]
[1762523849525,0.1431,3243.9,3243.2,0.1959]
[1762523849725,0.96747621,3244.0,3243.2,0.1959]
[1762523849938,0.96747621,3244.0,3243.8,0.4746]
[1762523852244,0.96747621,3244.0,3243.9,0.9601]
[1762523852648,0.96747621,3244.0,3243.2,0.1959]
[1762523852649,1.11307621,3244.0,3243.2,0.1959]
[1762523852956,0.96747621,3244.0,3243.9,0.4746]
[1762523853319,0.96747621,3244.0,3243.9,0.9601]
[1762523855147,0.96747621,3244.0,3243.9,0.4746]
[1762523855662,0.96747621,3244.0,3243.9,0.9614]
[1762523856240,0.96667621,3244.0,3243.9,0.9614]
[1762523857457,0.482948,3244.0,3243.9,0.9614]
[1762523858345,0.482948,3244.0,3243.9,0.4746]
[1762523858862,1.259712,3243.9,3243.2,0.1959]
[1762523859162,1.259712,3243.9,3243.2,0.6827]
[1762523859163,0.82100332,3243.9,3243.2,0.6827]
[1762523859362,0.482948,3244.0,3243.8,0.4575]
[1762523859564,0.482948,3244.0,3243.9,0.4575]
[1762523860329,0.482948,3244.0,3243.9,0.9401]
[1762523860555,0.96666329,3244.0,3243.9,0.9401]
[1762523860930,0.482948,3244.0,3243.9,0.9401]
[1762523867482,0.482948,3244.0,3243.9,0.4575]
[1762523868493,0.482948,3244.0,3243.9,0.9401]
[1762523870054,0.002,3244.7,3243.9,0.9401]
[1762523870250,0.4836562,3244.2,3244.0,0.4826]
[1762523870686,0.002,3244.7,3244.1,0.6494]
[1762523870864,0.48365763,3244.2,3244.1,0.6494]
[1762523871069,0.002,3244.7,3244.1,0.6494]
[1762523871383,0.48365653,3244.2,3244.1,0.6494]
[1762523871583,0.48365653,3244.2,3244.1,1.132]
[1762523871888,0.48365895,3244.2,3244.1,1.132]
[1762523875867,0.62925895,3244.2,3243.9,0.001]
[1762523876070,0.86672114,3244.2,3243.9,0.001]
[1762523876380,0.72112114,3244.2,3243.9,0.4836]
[1762523876998,0.72112114,3244.2,3243.9,0.001]
[1762523877200,0.48365895,3244.2,3244.1,0.6494]
[1762523877603,0.48365895,3244.2,3244.1,1.132]
[1762523878275,0.48365895,3244.2,3243.9,0.001]
[1762523878474,0.48365895,3244.2,3243.9,0.4836]
[1762523878680,0.48365895,3244.2,3243.9,0.001]
[1762523879089,0.48285895,3244.2,3243.9,0.001]
[1762523879612,0.1456,3244.0,3243.9,0.001]
[1762523880916,0.48285895,3244.2,3243.9,0.001]
[1762523881071,0.48285895,3244.2,3243.9,0.4836]
[1762523881580,0.70568113,3244.2,3243.9,0.001]
[1762523882106,0.1456,3244.0,3243.9,0.001]
[1762523882484,6.42147877,3244.0,3243.9,0.001]
[1762523882682,6.27587877,3244.0,3243.9,0.001]
[1762523883270,6.67887877,3244.0,3243.9,0.001]
[1762523883472,7.41733476,3244.0,3243.9,0.001]
[1762523884097,7.56293476,3244.0,3243.9,0.001]
[1762523884840,10.64554881,3244.0,3243.9,0.001]
[1762523885205,10.64554881,3244.0,3243.5,0.001]
[1762523885206,3.0828179,3243.8,3243.5,0.001]
[1762523885407,6.56457877,3243.6,3243.5,0.001]
[1762523885606,7.22103665,3243.6,3243.5,0.001]
[1762523885818,7.70479351,3243.6,3243.5,0.001]
[1762523886217,8.18855517,3243.6,3243.5,0.001]
[1762523886514,3.1723884,3243.6,3243.5,0.001]
[1762523886840,2.51593052,3243.6,3243.5,0.001]
[1762523887040,2.22723052,3243.6,3243.5,0.9882]
[1762523887513,2.37283052,3243.6,3243.5,0.001]
[1762523887718,2.41136794,3243.6,3243.5,0.001]
[1762523888106,2.37283052,3243.6,3243.5,0.001]
[1762523888306,2.95843477,3243.6,3243.5,0.001]
[1762523888807,6.48036639,3243.6,3243.5,0.001]
[1762523889027,3.35883477,3243.6,3243.5,0.001]
[1762523889547,2.77323052,3243.6,3243.5,0.001]
[1762523889747,2.22723052,3243.6,3243.5,0.001]
[1762523890127,2.22723052,3243.6,3243.5,0.4954]
[1762523890448,2.22723052,3243.6,3243.5,0.9882]
[1762523891125,2.22723052,3243.6,3243.5,0.4954]
[1762523891315,2.44995357,3243.6,3243.5,0.4954]
[1762523891739,2.44995357,3243.6,3243.5,0.001]
[1762523891950,2.59555357,3243.6,3243.5,0.001]
[1762523892978,2.44995357,3243.6,3243.5,0.4954]
[1762523893182,2.85295357,3243.6,3243.5,0.001]
[1762523894648,2.44995357,3243.6,3243.5,0.001]
[1762523895445,1.87966997,3243.6,3243.5,0.001]
[1762523895640,1.65694692,3243.6,3243.5,0.4954]
[1762523896040,1.80254692,3243.6,3243.5,0.001]
[1762523897041,1.84108434,3243.6,3243.5,0.001]
[1762523897674,1.65694692,3243.6,3243.5,0.001]
[1762523897971,2.20294692,3243.6,3243.5,0.001]
[1762523898675,0.48376166,3243.6,3243.5,0.001]
[1762523898975,0.48376166,3243.6,3243.5,0.4954]
[1762523899175,0.48376166,3243.6,3243.5,0.9882]
[1762523900679,0.002,3244.0,3243.5,4.47842974]
[1762523900877,0.002,3244.0,3243.9,0.4944]
[1762523901055,0.002,3244.0,3243.9,0.9872]
[1762523901857,0.0012,3244.0,3243.9,0.9872]
[1762523902769,0.0012,3244.0,3243.5,0.406504]
[1762523902973,0.0012,3244.0,3243.5,0.4938]
[1762523903458,0.1431,3243.9,3243.5,0.001]
[1762523905099,0.1456,3243.6,3243.5,0.001]
[1762523905279,1.88655107,3243.9,3243.5,0.001]
[1762523905478,2.75611922,3243.9,3243.5,0.001]
[1762523907967,2.61301922,3243.9,3243.5,0.4938]
[1762523908166,2.61301922,3243.9,3243.5,0.001]
[1762523908728,1.74345107,3243.9,3243.5,0.001]
[1762523908863,0.48373907,3243.9,3243.8,0.4944]
[1762523909068,0.0012,3244.0,3243.8,0.4944]
[1762523909390,0.0012,3244.0,3243.5,0.001]
[1762523909391,0.0012,3244.0,3243.9,0.4944]
[1762523909589,0.0012,3244.0,3243.9,0.9872]
[1762523910906,0.0012,3244.0,3243.9,0.99760802]
[1762523911282,0.0012,3244.0,3243.9,0.9872]
[1762523911671,0.0012,3244.0,3243.9,1.39420566]
[1762523912206,0.0012,3244.0,3243.9,4.47691474]
[1762523913004,0.0012,3244.0,3243.9,1.39420566]
[1762523913406,0.0012,3244.0,3243.9,0.9872]
[1762523916045,0.0012,3244.0,3243.9,0.4944]
[1762523916600,0.0012,3244.0,3243.5,0.001]
[1762523916936,0.0012,3244.0,3243.6,0.4953]
[1762523917433,0.0012,3244.0,3243.9,0.4957]
[1762523917810,0.0012,3244.0,3243.9,0.991]
[1762523918030,0.0012,3244.0,3243.9,0.4957]
[1762523918410,0.0012,3244.0,3243.9,0.991]
[1762523919238,0.0012,3244.0,3243.9,0.4957]
[1762523920334,0.0012,3244.0,3243.9,0.991]
[1762523923521,0.0012,3244.0,3243.9,1.39943003]
[1762523924659,0.0004,3244.0,3243.9,0.991]
[1762523926943,0.0004,3244.0,3243.9,0.4957]
[1762523926944,0.146,3244.0,3243.9,0.4957]
[1762523927145,0.146,3244.0,3243.5,0.001]
[1762523927146,1.259712,3243.8,3243.5,0.001]
[1762523927460,0.2847,3243.6,3243.5,0.001]
[1762523928134,1.17149319,3243.6,3243.5,0.001]
[1762523928461,1.72291302,3243.6,3243.5,0.001]
[1762523928649,6.06561922,3243.6,3243.5,0.001]
[1762523928846,1.259712,3243.5,3242.6,0.001]
[1762523929032,7.68503365,3243.3,3242.6,0.001]
[1762523929548,8.08803365,3243.3,3242.6,0.001]
[1762523929748,9.20515445,3243.3,3242.6,0.001]
[1762523930578,1.259712,3243.2,3242.6,0.001]
[1762523930741,1.802912,3243.2,3242.6,0.001]
[1762523931862,1.399912,3243.2,3242.6,0.001]
[1762523932559,1.802912,3243.2,3242.6,0.001]
[1762523932863,3.04523558,3243.2,3242.6,0.001]
[1762523933943,2.64223558,3243.2,3242.6,0.001]
[1762523934152,2.50203558,3243.2,3242.6,0.495]
[1762523934354,1.259712,3243.2,3243.1,1.1603]
[1762523934662,1.259712,3243.2,3243.1,0.6663]
[1762523935163,1.259712,3243.2,3243.1,1.1603]
[1762523935363,1.259712,3243.2,3243.1,0.6663]
[1762523935660,1.405312,3243.2,3243.1,0.001]
[1762523935863,2.18783537,3243.2,3243.1,0.001]
[1762523936027,2.04223537,3243.2,3243.1,0.001]
[1762523936462,2.18783537,3243.2,3243.1,0.001]
[1762523938586,3.0720771,3243.2,3243.1,0.001]
[1762523939286,2.6716771,3243.2,3243.1,0.001]
[1762523939585,3.15551875,3243.2,3243.1,0.001]
[1762523939973,3.55591875,3243.2,3243.1,0.001]
[1762523940293,3.55591875,3243.2,3242.6,0.001]
[1762523940497,6.40837209,3242.9,3242.6,0.001]
[1762523941764,6.68927209,3242.9,3242.6,0.001]
[1762523942092,7.08967209,3242.9,3242.6,0.001]
[1762523943297,3.08318447,3243.4,3242.6,0.001]
[1762523943298,0.002,3246.4,3243.1,0.4694]
[1762523943598,0.002,3246.4,3245.4,0.405504]
[1762523943765,0.4688,3246.3,3245.4,0.405504]
[1762523943953,0.002,3246.4,3243.2,0.26966675]
[1762523943954,5.61876009,3245.5,3243.2,0.26966675]
[1762523944154,0.1006,3245.4,3243.3,0.6848]
[1762523944351,0.4688,3245.3,3243.4,0.494]
[1762523944586,0.4688,3245.3,3243.5,0.405504]
[1762523944587,0.68864417,3245.2,3243.5,0.405504]
[1762523944800,0.4688,3245.3,3243.5,0.405504]
[1762523944960,6.41714778,3245.5,3243.6,0.4889]
[1762523944962,0.4522,3245.2,3243.6,0.4889]
[1762523945161,0.4522,3245.2,3243.4,0.405504]
[1762523945162,6.41714778,3245.0,3243.4,0.405504]
[1762523945401,0.4522,3245.2,3243.3,0.1908]
[1762523945402,0.002,3243.7,3243.3,0.1908]
[1762523945611,0.002,3243.7,3243.1,0.1815]
[1762523946595,0.03013787,3243.7,3242.9,0.1587]
[1762523947068,0.4522,3243.6,3242.8,0.001]
[1762523947270,0.02813787,3243.5,3242.8,0.001]
[1762523947488,0.4514,3243.6,3242.8,0.001]
[1762523947800,0.002,3243.7,3242.8,0.001]
[1762523947980,0.45475068,3243.7,3242.8,0.001]
[1762523948175,0.002,3243.7,3242.8,0.001]
[1762523948376,3.08302234,3243.6,3242.8,0.001]
[1762523948681,0.6392,3242.9,3242.8,0.001]
[1762523949502,0.183,3243.1,3242.8,0.001]
[1762523949708,0.02813787,3243.0,3242.8,0.001]
[1762523949883,0.4562,3242.9,3242.8,0.001]
[1762523950283,0.61653677,3242.9,3242.8,0.001]
[1762523950601,1.06873677,3242.9,3242.8,0.001]
[1762523951604,0.61653677,3242.9,3242.8,0.001]
[1762523955362,0.16033677,3242.9,3242.8,0.001]
[1762523955629,0.48382987,3243.0,3242.8,0.001]
[1762523959403,0.48382987,3243.0,3242.9,0.4844]
[1762523959982,0.96774458,3243.0,3242.9,0.9733]
[1762523960325,0.002,3243.7,3243.0,3.08356242]
[1762523960635,0.002,3243.7,3243.6,0.6596]
[1762523961081,0.002,3243.7,3243.6,1.1485]
[1762523961364,0.002,3243.7,3243.6,4.6369982]
[1762523961682,0.002,3243.7,3243.6,5.42436737]
[1762523961834,0.002,3243.7,3243.6,5.60879731]
[1762523963082,0.002,3243.7,3243.6,5.57796737]
[1762523970169,0.0012,3243.7,3243.6,5.57796737]
[1762523973663,0.0012,3243.7,3243.6,9.41796737]
[1762523974768,0.48563609,3245.3,3245.0,3.08159256]
[1762523975080,0.48563609,3245.3,3245.2,0.6829]
[1762523975299,0.48563609,3245.3,3245.2,3.76437417]
[1762523975468,0.48563609,3245.3,3245.2,4.25697417]
[1762523975991,0.002,3245.3,3245.2,4.25697417]
[1762523976354,0.002,3245.3,3245.2,4.28778891]
[1762523976550,0.002,3245.3,3245.2,4.25697417]
[1762523977469,0.002,3245.3,3245.2,1.1755]
[1762523978373,0.002,3245.3,3245.2,4.25697417]
[1762523979067,0.002,3245.3,3245.2,1.1755]
[1762523979963,0.002,3245.3,3244.9,0.405504]
[1762523980488,0.002,3245.3,3244.9,3.9798024]
[1762523981105,0.002,3245.3,3244.7,3.26862185]
[1762523981398,0.002,3245.3,3244.8,0.405504]
[1762523981994,0.002,3245.3,3244.9,0.4722]
[1762523982599,0.002,3245.3,3244.7,3.95295799]
[1762523982803,0.002,3245.3,3244.7,0.405504]
[1762523983098,0.002,3245.3,3244.8,3.08182179]
[1762523983689,0.002,3245.3,3244.6,3.69899306]
[1762523983888,0.002,3245.3,3244.8,3.08182473]
[1762523984180,0.002,3245.3,3244.6,0.61696887]
[1762523984716,0.492,3245.3,3244.6,0.14476887]
[1762523985102,0.492,3245.3,3244.7,3.08189961]
[1762523985298,0.492,3245.3,3244.6,3.22681141]
[1762523985677,0.4946,3244.7,3244.6,0.55027287]
[1762523985918,0.4946,3244.7,3244.6,0.98930016]
[1762523986118,0.4946,3244.7,3244.3,3.08226703]
[1762523986119,1.1242,3244.7,3244.0,0.001]
[1762523986314,0.3698,3244.5,3244.0,0.001]
[1762523986701,0.1396,3244.7,3244.1,0.0982]
[1762523986905,0.1396,3244.7,3244.3,3.08228078]
[1762523987232,0.1396,3244.7,3244.1,3.1806529]
[1762523987233,0.1396,3244.7,3244.1,0.0982]
[1762523987505,0.1396,3244.7,3244.2,3.08242401]
[1762523987676,0.1396,3244.7,3244.1,0.0982]
[1762523987877,0.1396,3244.7,3244.2,3.08233158]
[1762523988090,0.6296,3244.7,3244.2,3.08240429]
[1762523988319,0.6296,3244.7,3244.1,0.0982]
[1762523988514,0.6296,3244.7,3244.0,0.001]
[1762523988676,0.1396,3244.7,3244.0,3.08360665]
[1762523988884,0.4946,3244.1,3244.0,4.16166147]
[1762523989477,0.4946,3244.1,3244.0,1.07905482]
[1762523989675,0.9846,3244.1,3244.0,0.001]
[1762523989897,0.49,3244.5,3244.0,0.001]
[1762523990101,0.6719,3245.0,3244.1,0.0982]
[1762523990641,0.6719,3245.0,3244.4,0.405504]
[1762523990814,0.1819,3245.0,3244.5,0.405504]
[1762523991013,0.4835039,3245.1,3244.5,0.877704]
[1762523991226,0.4835039,3245.1,3244.9,3.54109866]
[1762523991545,0.002,3245.3,3245.0,0.4594]
[1762523991744,0.002,3245.3,3245.2,0.5576]
[1762523992052,0.002,3245.3,3245.2,3.63907417]
[1762523992218,0.002,3245.3,3245.2,1.0298]
[1762523992907,0.0012,3245.3,3245.2,1.0298]
[1762523993109,0.0012,3245.3,3245.2,0.5576]
[1762523993444,0.0012,3245.3,3245.2,4.47518698]
[1762523993648,0.0012,3245.3,3245.2,4.88069098]
[1762523996324,0.0012,3245.3,3245.2,0.405504]
[1762523996646,0.0012,3245.3,3245.2,0.864904]
[1762523997633,0.0012,3245.3,3245.2,0.405504]
[1762523998042,0.0012,3245.3,3245.2,0.4594]
[1762523999555,0.0012,3245.3,3244.9,0.405504]
[1762523999753,0.0012,3245.3,3244.8,0.724]
[1762523999905,0.0012,3245.3,3244.8,0.5704]
[1762524000105,0.0012,3245.3,3244.8,3.65219863]
[1762524000306,0.0012,3245.3,3244.8,0.5704]
[1762524000503,0.49,3245.2,3244.5,0.1536]
[1762524000844,0.49,3245.2,3244.6,0.405504]
[1762524001256,0.0012,3245.3,3244.6,0.405504]
[1762524001542,0.49,3245.2,3244.6,0.405504]
[1762524002116,0.49,3245.2,3244.5,0.1536]
[1762524002348,0.49,3245.2,3243.6,1.435912]
[1762524002349,0.6765,3244.6,3243.6,0.1762]
[1762524002548,0.493,3244.1,3243.6,0.001]
[1762524002853,0.49,3244.5,3243.6,0.001]
[1762524003013,0.1819,3244.6,3244.1,0.0982]
[1762524003212,0.1819,3244.7,3244.1,0.0982]
[1762524003414,0.4946,3244.2,3243.6,0.001]
[1762524003614,0.48358116,3244.5,3243.6,0.001]
[1762524003615,0.4946,3244.1,3243.6,0.001]
[1762524004141,0.48358116,3244.5,3243.8,3.08277897]
[1762524004346,0.4946,3244.1,3243.6,3.08395477]
[1762524004552,0.4946,3244.1,3243.7,3.08289595]
[1762524004957,0.49,3244.4,3243.7,3.08289595]
[1762524006286,0.49,3244.4,3243.6,0.001]
[1762524006437,0.4552,3244.1,3243.6,0.001]
[1762524006831,0.9552,3244.1,3243.6,0.001]